[Event "23rd ETCC Women 2021"]
[Site "Catez"]
[Date "2021.11.20"]
[Round "8.37"]
[White "Unuk, Laura"]
[Black "Repkova, Eva"]
[Result "1-0"]
[ECO "A18"]
[WhiteElo "2353"]
[BlackElo "2307"]
[Annotator "NA"]
[PlyCount "125"]
[EventDate "2021.11.08"]
[EventType "team-tourn"]
[EventCountry "SLO"]
[SourceTitle "playchess.com"]
[Source "ChessBase"]
[SourceQuality "1"]
[WhiteTeam "Slovenia"]
[BlackTeam "Slovakia"]
[WhiteTeamCountry "SLO"]
[BlackTeamCountry "SVK"]
[TimeControl "40/5400+30:1800+30"]

1. c4 {[%emt 0:00:04]} Nf6 {[%emt 0:00:36]} 2. Nc3 {[%emt 0:00:24]} e6 {
[%emt 0:00:26]} 3. e4 {[%emt 0:00:55]} d5 {[%emt 0:02:23]} 4. cxd5 {[%emt 0:01:
05]} exd5 {[%emt 0:00:05]} 5. e5 {[%emt 0:07:11]} Ng8 {[%emt 0:11:05]} 6. d4 {
[%emt 0:00:00]} Ne7 {[%emt 0:01:59]} 7. Bd3 {[%emt 0:12:56]} Nbc6 {[%emt 0:00:
29]} 8. Nge2 {[%emt 0:01:15]} Be6 {[%emt 0:06:11]} 9. O-O {[%emt 0:05:42]} g6 {
[%emt 0:00:06]} 10. Bg5 {[%emt 0:11:31]} Bg7 {[%emt 0:00:09]} 11. Na4 {[%emt 0:
04:28]} h6 {[%emt 0:01:39]} 12. Bh4 {[%emt 0:02:08]} Qc8 {[%emt 0:09:28]} 13.
f4 {[%emt 0:04:42]} Nf5 {[%emt 0:04:27]} 14. Bf2 {[%emt 0:00:11]} h5 {[%emt 0:
00:12]} 15. Rc1 {[%emt 0:05:00]} O-O {[%emt 0:05:48]} 16. Nc5 {[%emt 0:00:00]}
Bh6 {[%emt 0:09:25]} 17. Qb3 {[%emt 0:05:45]} Rb8 {[%emt 0:05:56]} 18. h3 {
[%emt 0:02:49]} Nfe7 {[%emt 0:07:16]} 19. Nxe6 {[%emt 0:08:09]} fxe6 {[%emt 0:
01:35]} 20. Bb1 {[%emt 0:02:54]} Qe8 {[%emt 0:03:35]} 21. Be1 {[%emt 0:01:15]}
Nf5 {[%emt 0:01:47]} 22. Qd3 {[%emt 0:00:58]} h4 {[%emt 0:00:24]} 23. b4 {
[%emt 0:04:17]} a6 {[%emt 0:02:09]} 24. a4 {[%emt 0:01:08]} Rf7 {[%emt 0:03:25]
} 25. Qc3 {[%emt 0:02:11]} Bf8 {[%emt 0:01:58]} 26. Qb2 {[%emt 0:06:31]} Rh7 {
[%emt 0:02:51]} 27. b5 {[%emt 0:00:23]} axb5 {[%emt 0:00:09]} 28. axb5 {
[%emt 0:00:11]} Na7 {[%emt 0:01:05]} 29. Bd3 {[%emt 0:01:20]} c6 {[%emt 0:03:
16]} 30. Nc3 {[%emt 0:05:00]} cxb5 {[%emt 0:08:10]} 31. Nxb5 {[%emt 0:01:32]}
Nc6 {[%emt 0:00:03]} 32. Rf3 {[%emt 0:01:13]} Qd8 {[%emt 0:00:51]} 33. Bf2 {
[%emt 0:01:01]} Ra8 {[%emt 0:01:03]} 34. Bb1 {[%emt 0:00:18]} Ra5 {[%emt 0:00:
37]} 35. Rb3 {[%emt 0:00:44]} Qd7 {[%emt 0:01:48]} 36. Qe2 {[%emt 0:00:26]} Nb4
{[%emt 0:03:37]} 37. Nd6 {[%emt 0:01:30]} Bxd6 {[%emt 0:01:30]} 38. exd6 {
[%emt 0:00:01]} Qxd6 {[%emt 0:00:06]} 39. Qd2 {[%emt 0:01:10]} Ra4 {[%emt 0:00:
37]} 40. Rc8+ {[%emt 0:00:43]} Kf7 {[%emt 0:01:12]} 41. Rc5 {[%emt 0:16:04]} b6
{[%emt 0:13:26]} 42. Rb5 {[%emt 0:00:11]} Nc6 {[%emt 0:00:05]} 43. Rxb6 {
[%emt 0:00:08]} Nfe7 {[%emt 0:01:14]} 44. Rc3 {[%emt 0:02:08]} Rb4 {[%emt 0:03:
00]} 45. Bxg6+ {[%emt 0:08:28]} Kxg6 {[%emt 0:00:38]} 46. Qc2+ {[%emt 0:00:02]}
Kh6 {[%emt 0:04:40]} 47. Rbxc6 {[%emt 0:00:14]} Nxc6 {[%emt 0:00:08]} 48. Rxc6
{[%emt 0:00:04]} Rb1+ {[%emt 0:04:31]} 49. Qxb1 {[%emt 0:00:30]} Qxc6 {[%emt 0:
00:03]} 50. Bxh4 {[%emt 0:00:03]} Rb7 {[%emt 0:00:10]} 51. Qe1 {[%emt 0:00:52]}
Qb6 {[%emt 0:04:30]} 52. Bg5+ {[%emt 0:02:40]} Kg6 {[%emt 0:00:10]} 53. Kh2 {
[%emt 0:00:10]} Qd6 {[%emt 0:02:54]} 54. Qg3 {[%emt 0:00:15]} Kf7 {[%emt 0:00:
16]} 55. Qd3 {[%emt 0:00:14]} Ke8 {[%emt 0:00:18]} 56. Qg6+ {[%emt 0:00:53]}
Kd7 {[%emt 0:00:11]} 57. h4 {[%emt 0:00:26]} Qf8 {[%emt 0:01:57]} 58. Bf6 {
[%emt 0:00:15]} Qe8 {[%emt 0:00:12]} 59. Qg5 {[%emt 0:02:39]} Rb8 {[%emt 0:01:
11]} 60. h5 {[%emt 0:00:13]} Qf7 {[%emt 0:00:48]} 61. h6 {[%emt 0:01:34]} Rf8 {
[%emt 0:00:05]} 62. Qg7 {[%emt 0:00:37]} Ke8 {[%emt 0:00:43]} 63. h7 {[%emt 0:
00:14]} 1-0

[Event "23rd ETCC Women 2021"]
[Site "Catez"]
[Date "2021.11.20"]
[Round "8.38"]
[White "Hagarova, Zuzana"]
[Black "Urh, Zala"]
[Result "1-0"]
[ECO "C83"]
[WhiteElo "2292"]
[BlackElo "2332"]
[Annotator "NA"]
[PlyCount "119"]
[EventDate "2021.11.08"]
[EventType "team-tourn"]
[EventCountry "SLO"]
[SourceTitle "playchess.com"]
[Source "ChessBase"]
[SourceQuality "1"]
[WhiteTeam "Slovakia"]
[BlackTeam "Slovenia"]
[WhiteTeamCountry "SVK"]
[BlackTeamCountry "SLO"]
[TimeControl "40/5400+30:1800+30"]

1. e4 {[%emt 0:00:07]} e5 {[%emt 0:00:06]} 2. Nf3 {[%emt 0:00:10]} Nc6 {
[%emt 0:00:07]} 3. Bb5 {[%emt 0:00:12]} a6 {[%emt 0:00:08]} 4. Ba4 {[%emt 0:00:
16]} Nf6 {[%emt 0:00:09]} 5. O-O {[%emt 0:00:28]} Nxe4 {[%emt 0:00:13]} 6. d4 {
[%emt 0:01:17]} Be7 {[%emt 0:09:58]} 7. Re1 {[%emt 0:09:17]} b5 {[%emt 0:00:00]
} 8. Bb3 {[%emt 0:00:50]} d5 {[%emt 0:00:00]} 9. dxe5 {[%emt 0:01:28]} Be6 {
[%emt 0:00:00]} 10. c3 {[%emt 0:01:04]} O-O {[%emt 0:00:00]} 11. Be3 {[%emt 0:
03:59]} Na5 {[%emt 0:06:53]} 12. Nd4 {[%emt 0:13:58]} Nc4 {[%emt 0:19:56]} 13.
Bxc4 {[%emt 0:07:18]} bxc4 {[%emt 0:01:41]} 14. Nc6 {[%emt 0:02:56]} Qd7 {
[%emt 0:01:05]} 15. Nxe7+ {[%emt 0:00:45]} Qxe7 {[%emt 0:00:07]} 16. b4 {
[%emt 0:00:08]} cxb3 {[%emt 0:05:58]} 17. axb3 {[%emt 0:01:06]} a5 {[%emt 0:05:
09]} 18. Qc2 {[%emt 0:09:59]} Rfb8 {[%emt 0:02:49]} 19. Ra3 {[%emt 0:11:10]}
Bf5 {[%emt 0:08:55]} 20. f3 {[%emt 0:15:57]} Ng3 {[%emt 0:08:33]} 21. Qf2 {
[%emt 0:03:05]} Bxb1 {[%emt 0:05:14]} 22. Bc5 {[%emt 0:00:27]} Ne2+ {[%emt 0:
01:20]} 23. Rxe2 {[%emt 0:01:41]} Qg5 {[%emt 0:01:56]} 24. Re1 {[%emt 0:00:53]}
Bf5 {[%emt 0:00:18]} 25. Rea1 {[%emt 0:03:54]} h5 {[%emt 0:05:12]} 26. f4 {
[%emt 0:02:00]} Qg4 {[%emt 0:02:24]} 27. b4 {[%emt 0:08:26]} Ra6 {[%emt 0:02:
55]} 28. h3 {[%emt 0:00:32]} Qg6 {[%emt 0:00:09]} 29. Kh2 {[%emt 0:00:08]} Be4
{[%emt 0:01:38]} 30. Rxa5 {[%emt 0:00:15]} Re6 {[%emt 0:00:15]} 31. Ra7 {
[%emt 0:00:47]} Qh6 {[%emt 0:05:16]} 32. R1a2 {[%emt 0:01:11]} h4 {[%emt 0:00:
36]} 33. Rxc7 {[%emt 0:00:27]} Rg6 {[%emt 0:00:24]} 34. Qf1 {[%emt 0:00:32]}
Rg3 {[%emt 0:00:58]} 35. Bd4 {[%emt 0:00:44]} Qg6 {[%emt 0:00:39]} 36. Kg1 {
[%emt 0:00:27]} Rxh3 {[%emt 0:01:14]} 37. e6 {[%emt 0:00:08]} f6 {[%emt 0:02:
33]} 38. Raa7 {[%emt 0:00:53]} Rg3 {[%emt 0:00:01]} 39. Rxg7+ {[%emt 0:00:19]}
Qxg7 {[%emt 0:00:01]} 40. Rxg7+ {[%emt 0:00:12]} Kxg7 {[%emt 0:01:59]} 41. Qa6
{[%emt 0:03:43]} Rxg2+ {[%emt 0:04:10]} 42. Kf1 {[%emt 0:01:29]} Rg8 {[%emt 0:
13:28]} 43. e7 {[%emt 0:06:35]} Rg6 {[%emt 0:02:34]} 44. Qe6 {[%emt 0:10:23]}
Re8 {[%emt 0:01:14]} 45. f5 {[%emt 0:04:49]} Rh6 {[%emt 0:02:41]} 46. Kg1 {
[%emt 0:00:28]} h3 {[%emt 0:02:57]} 47. Kh2 {[%emt 0:00:05]} Bf3 {[%emt 0:01:
26]} 48. b5 {[%emt 0:01:16]} Bh5 {[%emt 0:00:03]} 49. Qd7 {[%emt 0:00:54]} Bf7
{[%emt 0:01:43]} 50. b6 {[%emt 0:00:42]} Ra8 {[%emt 0:01:05]} 51. e8=Q {
[%emt 0:00:39]} Rxe8 {[%emt 0:01:09]} 52. Qxe8 {[%emt 0:00:15]} Bxe8 {[%emt 0:
00:04]} 53. b7 {[%emt 0:00:06]} Bd7 {[%emt 0:05:36]} 54. b8=Q {[%emt 0:00:07]}
Bxf5 {[%emt 0:00:03]} 55. Qb7+ {[%emt 0:02:34]} Kg6 {[%emt 0:00:07]} 56. Qxd5 {
[%emt 0:00:32]} Rh7 {[%emt 0:01:18]} 57. Qd6 {[%emt 0:00:47]} Rf7 {[%emt 0:00:
08]} 58. c4 {[%emt 0:01:51]} Kh5 {[%emt 0:01:31]} 59. Bxf6 {[%emt 0:00:51]} Ra7
{[%emt 0:00:16]} 60. Bc3 {[%emt 0:00:31]} 1-0

[Event "23rd ETCC Women 2021"]
[Site "Catez"]
[Date "2021.11.20"]
[Round "8.39"]
[White "Janzelj, Lara"]
[Black "Sucikova, Svetlana"]
[Result "1/2-1/2"]
[ECO "A11"]
[WhiteElo "2150"]
[BlackElo "2197"]
[Annotator "NA"]
[PlyCount "115"]
[EventDate "2021.11.08"]
[EventType "team-tourn"]
[EventCountry "SLO"]
[SourceTitle "playchess.com"]
[Source "ChessBase"]
[SourceQuality "1"]
[WhiteTeam "Slovenia"]
[BlackTeam "Slovakia"]
[WhiteTeamCountry "SLO"]
[BlackTeamCountry "SVK"]
[TimeControl "40/5400+30:1800+30"]

1. c4 {[%emt 0:00:05]} c6 {[%emt 0:00:50]} 2. g3 {[%emt 0:02:05]} d5 {[%emt 0:
01:25]} 3. Nf3 {[%emt 0:00:18]} Nf6 {[%emt 0:02:20]} 4. Bg2 {[%emt 0:01:51]}
dxc4 {[%emt 0:03:34]} 5. O-O {[%emt 0:03:26]} Nbd7 {[%emt 0:01:41]} 6. Na3 {
[%emt 0:02:40]} Nb6 {[%emt 0:00:00]} 7. Qc2 {[%emt 0:01:38]} g6 {[%emt 0:00:00]
} 8. Nxc4 {[%emt 0:01:38]} Nxc4 {[%emt 0:00:00]} 9. Qxc4 {[%emt 0:00:02]} Bg7 {
[%emt 0:00:00]} 10. d3 {[%emt 0:02:52]} O-O {[%emt 0:00:00]} 11. Bg5 {[%emt 0:
00:45]} Be6 {[%emt 0:00:00]} 12. Qc1 {[%emt 0:03:40]} Re8 {[%emt 0:06:50]} 13.
Bh6 {[%emt 0:03:28]} Qb6 {[%emt 0:13:32]} 14. Bxg7 {[%emt 0:02:46]} Kxg7 {
[%emt 0:00:03]} 15. Ng5 {[%emt 0:00:26]} Bg4 {[%emt 0:08:34]} 16. Qc4 {[%emt 0:
08:48]} Rf8 {[%emt 0:01:08]} 17. Qc2 {[%emt 0:11:40]} h6 {[%emt 0:03:34]} 18.
Nf3 {[%emt 0:05:08]} Rad8 {[%emt 0:05:31]} 19. h3 {[%emt 0:00:00]} Bxf3 {
[%emt 0:08:58]} 20. Bxf3 {[%emt 0:00:00]} Rd6 {[%emt 0:05:47]} 21. Rac1 {
[%emt 0:00:22]} Rfd8 {[%emt 0:00:09]} 22. Qb1 {[%emt 0:03:36]} h5 {[%emt 0:06:
44]} 23. Rc4 {[%emt 0:04:01]} Rd4 {[%emt 0:05:24]} 24. Rfc1 {[%emt 0:00:25]} h4
{[%emt 0:08:02]} 25. gxh4 {[%emt 0:06:43]} Rh8 {[%emt 0:08:28]} 26. Rxd4 Qxd4
27. Rc4 {[%emt 0:00:55]} Qd6 {[%emt 0:00:14]} 28. Qc1 {[%emt 0:00:53]} Nd5 {
[%emt 0:03:42]} 29. Qg5 {[%emt 0:08:35]} e5 {[%emt 0:01:36]} 30. e3 {[%emt 0:
03:55]} Nb6 {[%emt 0:01:12]} 31. Rc3 {[%emt 0:01:00]} Na4 {[%emt 0:00:12]} 32.
Rc2 {[%emt 0:00:45]} Nb6 {[%emt 0:03:26]} 33. Qg3 {[%emt 0:04:45]} Nd7 {
[%emt 0:00:37]} 34. Rd2 {[%emt 0:02:51]} Qb4 {[%emt 0:01:02]} 35. Rc2 {[%emt 0:
00:58]} Qxh4 {[%emt 0:01:45]} 36. Kg2 {[%emt 0:00:46]} Qa4 {[%emt 0:00:31]} 37.
Rc4 {[%emt 0:01:41]} Qb5 {[%emt 0:00:44]} 38. b4 {[%emt 0:00:56]} a5 {[%emt 0:
01:06]} 39. a3 {[%emt 0:02:58]} Re8 {[%emt 0:00:19]} 40. h4 {[%emt 0:01:49]}
Nf6 {[%emt 0:00:06]} 41. Be2 {[%emt 0:35:00]} axb4 {[%emt 0:03:33]} 42. axb4 {
[%emt 0:00:00]} Qd5+ {[%emt 0:03:00]} 43. Qf3 {[%emt 0:00:00]} e4 {[%emt 0:03:
36]} 44. dxe4 {[%emt 0:00:00]} Rxe4 {[%emt 0:00:11]} 45. Rxe4 {[%emt 0:00:00]}
Nxe4 {[%emt 0:00:08]} 46. Qf4 {[%emt 0:00:00]} Ng5+ {[%emt 0:07:46]} 47. Kh2 {
[%emt 0:00:00]} Ne6 {[%emt 0:00:06]} 48. Qg4 {[%emt 0:00:00]} Qd6+ {[%emt 0:00:
47]} 49. Kg2 {[%emt 0:00:00]} Nc7 {[%emt 0:00:24]} 50. h5 {[%emt 0:00:00]} b5 {
[%emt 0:03:13]} 51. Bf3 {[%emt 0:00:00]} Na6 {[%emt 0:03:59]} 52. hxg6 {
[%emt 0:00:00]} fxg6 {[%emt 0:01:07]} 53. e4 {[%emt 0:00:00]} Qe7 {[%emt 0:04:
29]} 54. e5 {[%emt 0:00:18]} Nxb4 {[%emt 0:04:20]} 55. Be4 {[%emt 0:00:41]}
Qxe5 {[%emt 0:01:25]} 56. Qxg6+ {[%emt 0:01:13]} Kf8 {[%emt 0:00:02]} 57. Bxc6
{[%emt 0:00:44]} Nxc6 {[%emt 0:01:02]} 58. Qxc6 {[%emt 0:00:06]} 1/2-1/2

[Event "23rd ETCC Women 2021"]
[Site "Catez"]
[Date "2021.11.20"]
[Round "8.40"]
[White "Mrvova, Alena"]
[Black "Rozman, Monika"]
[Result "1-0"]
[ECO "C95"]
[WhiteElo "2174"]
[BlackElo "2112"]
[Annotator "NA"]
[PlyCount "63"]
[EventDate "2021.11.08"]
[EventType "team-tourn"]
[EventCountry "SLO"]
[SourceTitle "playchess.com"]
[Source "ChessBase"]
[SourceQuality "1"]
[WhiteTeam "Slovakia"]
[BlackTeam "Slovenia"]
[WhiteTeamCountry "SVK"]
[BlackTeamCountry "SLO"]
[TimeControl "40/5400+30:1800+30"]

1. e4 {[%emt 0:00:08]} e5 {[%emt 0:00:05]} 2. Nf3 {[%emt 0:00:29]} Nc6 {
[%emt 0:00:04]} 3. Bb5 {[%emt 0:00:23]} a6 {[%emt 0:00:03]} 4. Ba4 {[%emt 0:00:
35]} Nf6 {[%emt 0:00:05]} 5. O-O {[%emt 0:00:40]} Be7 {[%emt 0:00:12]} 6. Re1 {
[%emt 0:00:25]} b5 {[%emt 0:00:05]} 7. Bb3 {[%emt 0:00:06]} d6 {[%emt 0:00:07]}
8. c3 {[%emt 0:00:20]} O-O {[%emt 0:00:05]} 9. h3 {[%emt 0:00:27]} Nb8 {
[%emt 0:00:08]} 10. d4 {[%emt 0:00:44]} Nbd7 {[%emt 0:00:05]} 11. c4 {[%emt 0:
07:23]} c6 {[%emt 0:01:54]} 12. a3 {[%emt 0:04:39]} Bb7 {[%emt 0:07:45]} 13.
Nc3 {[%emt 0:01:28]} Re8 {[%emt 0:05:29]} 14. Be3 {[%emt 0:10:05]} bxc4 {
[%emt 0:05:09]} 15. Bxc4 {[%emt 0:00:35]} d5 {[%emt 0:01:36]} 16. Ba2 {[%emt 0:
03:18]} Nxe4 {[%emt 0:08:08]} 17. Nxe4 {[%emt 0:07:39]} dxe4 {[%emt 0:00:32]}
18. Nxe5 {[%emt 0:01:12]} Nxe5 {[%emt 0:07:03]} 19. dxe5 {[%emt 0:00:31]} Qxd1
{[%emt 0:08:52]} 20. Raxd1 {[%emt 0:00:05]} c5 {[%emt 0:08:55]} 21. Rd7 {
[%emt 0:04:22]} Bc6 {[%emt 0:04:08]} 22. Rc7 {[%emt 0:00:13]} Rac8 {[%emt 0:00:
52]} 23. Rxc8 {[%emt 0:00:57]} Rxc8 {[%emt 0:00:06]} 24. Rc1 {[%emt 0:00:05]}
Bb5 {[%emt 0:08:14]} 25. Bd5 {[%emt 0:02:44]} Bc6 {[%emt 0:02:22]} 26. Bxc6 {
[%emt 0:00:43]} Rxc6 {[%emt 0:00:06]} 27. Rc4 {[%emt 0:00:03]} f5 {[%emt 0:05:
55]} 28. exf6 {[%emt 0:00:54]} gxf6 {[%emt 0:00:59]} 29. Rxe4 {[%emt 0:00:07]}
Kf7 {[%emt 0:00:06]} 30. Rc4 {[%emt 0:00:05]} Ke6 {[%emt 0:00:10]} 31. Rh4 {
[%emt 0:01:37]} Rb6 {[%emt 0:16:07]} 32. Re4+ {[%emt 0:00:07]} 1-0

[Event "23rd ETCC Women 2021"]
[Site "Catez"]
[Date "2021.11.20"]
[Round "8.41"]
[White "Vega Gutierrez, Sabrina"]
[Black "Shvayger, Yuliya"]
[Result "0-1"]
[ECO "B32"]
[WhiteElo "2394"]
[BlackElo "2351"]
[Annotator "NA"]
[PlyCount "66"]
[EventDate "2021.11.08"]
[EventType "team-tourn"]
[EventCountry "SLO"]
[SourceTitle "playchess.com"]
[Source "ChessBase"]
[SourceQuality "1"]
[WhiteTeam "Spain"]
[BlackTeam "Israel"]
[WhiteTeamCountry "ESP"]
[BlackTeamCountry "ISR"]
[TimeControl "40/5400+30:1800+30"]

1. e4 {[%emt 0:00:05]} c5 {[%emt 0:00:40]} 2. Nf3 {[%emt 0:00:08]} Nc6 {
[%emt 0:00:05]} 3. d4 {[%emt 0:00:06]} cxd4 {[%emt 0:00:06]} 4. Nxd4 {[%emt 0:
00:04]} e5 {[%emt 0:00:11]} 5. Nb5 {[%emt 0:00:10]} d6 {[%emt 0:00:05]} 6. c4 {
[%emt 0:00:13]} Be6 {[%emt 0:00:11]} 7. Bd3 {[%emt 0:00:18]} g6 {[%emt 0:03:23]
} 8. O-O {[%emt 0:00:19]} a6 {[%emt 0:10:47]} 9. N5c3 {[%emt 0:00:56]} Bg7 {
[%emt 0:05:47]} 10. Nd5 {[%emt 0:01:24]} Nf6 {[%emt 0:01:09]} 11. Nbc3 {
[%emt 0:02:56]} Nd7 {[%emt 0:04:18]} 12. b4 {[%emt 0:01:28]} O-O {[%emt 0:00:
43]} 13. Ba3 {[%emt 0:04:02]} Nd4 {[%emt 0:09:25]} 14. c5 {[%emt 0:15:20]} b5 {
[%emt 0:02:41]} 15. Ne2 {[%emt 0:01:20]} dxc5 {[%emt 0:02:25]} 16. bxc5 {
[%emt 0:00:29]} Nc6 {[%emt 0:00:02]} 17. Qd2 {[%emt 0:05:02]} Rb8 {[%emt 0:02:
26]} 18. Rac1 {[%emt 0:02:44]} Nf6 {[%emt 0:14:38]} 19. Nb4 {[%emt 0:06:44]}
Qc8 {[%emt 0:00:03]} 20. Bb2 {[%emt 0:03:33]} Rd8 {[%emt 0:02:38]} 21. Nxc6 {
[%emt 0:01:01]} Qxc6 {[%emt 0:00:03]} 22. Bxe5 {[%emt 0:00:15]} Nxe4 {[%emt 0:
01:00]} 23. Qf4 {[%emt 0:13:48]} g5 {[%emt 0:07:19]} 24. Qxe4 {[%emt 0:04:37]}
Qxe4 {[%emt 0:00:12]} 25. Bxe4 {[%emt 0:00:04]} Bxe5 {[%emt 0:00:06]} 26. c6 {
[%emt 0:00:11]} Rbc8 {[%emt 0:06:31]} 27. f4 {[%emt 0:11:03]} gxf4 {[%emt 0:00:
38]} 28. Nxf4 {[%emt 0:00:09]} Bxa2 {[%emt 0:03:04]} 29. Bf5 {[%emt 0:11:36]}
Rc7 {[%emt 0:00:15]} 30. Nd3 {[%emt 0:00:00]} Bd4+ {[%emt 0:01:18]} 31. Kh1 {
[%emt 0:00:00]} Bc4 {[%emt 0:00:57]} 32. Be4 {[%emt 0:04:57]} Be3 {[%emt 0:05:
21]} 33. Rcd1 {[%emt 0:01:52]} Rd4 {[%emt 0:00:12]} 0-1

[Event "23rd ETCC Women 2021"]
[Site "Catez"]
[Date "2021.11.20"]
[Round "8.42"]
[White "Shapir, Maya"]
[Black "Garcia Martin, Marta"]
[Result "0-1"]
[ECO "E16"]
[WhiteElo "2256"]
[BlackElo "2324"]
[Annotator "NA"]
[PlyCount "132"]
[EventDate "2021.11.08"]
[EventType "team-tourn"]
[EventCountry "SLO"]
[SourceTitle "playchess.com"]
[Source "ChessBase"]
[SourceQuality "1"]
[WhiteTeam "Israel"]
[BlackTeam "Spain"]
[WhiteTeamCountry "ISR"]
[BlackTeamCountry "ESP"]
[TimeControl "40/5400+30:1800+30"]

1. d4 {[%emt 0:00:31]} Nf6 {[%emt 0:02:01]} 2. c4 {[%emt 0:00:11]} e6 {[%emt 0:
00:05]} 3. Nf3 {[%emt 0:00:14]} b6 {[%emt 0:00:41]} 4. g3 {[%emt 0:00:12]} Bb7
{[%emt 0:01:22]} 5. Bg2 {[%emt 0:00:06]} Bb4+ {[%emt 0:01:30]} 6. Bd2 {[%emt 0:
00:48]} Bxd2+ {[%emt 0:00:35]} 7. Nbxd2 {[%emt 0:02:29]} O-O {[%emt 0:00:35]}
8. O-O {[%emt 0:01:27]} c5 {[%emt 0:03:25]} 9. Qc2 {[%emt 0:03:01]} Nc6 {
[%emt 0:09:50]} 10. e3 {[%emt 0:13:04]} Rc8 {[%emt 0:01:59]} 11. Qa4 {[%emt 0:
13:32]} d5 {[%emt 0:23:56]} 12. cxd5 {[%emt 0:02:19]} exd5 {[%emt 0:02:23]} 13.
Rac1 {[%emt 0:02:20]} Qe7 {[%emt 0:03:46]} 14. dxc5 {[%emt 0:04:42]} bxc5 {
[%emt 0:00:34]} 15. Qa3 {[%emt 0:01:20]} Nb4 {[%emt 0:03:50]} 16. Nb3 {[%emt 0:
08:11]} Ba6 {[%emt 0:04:51]} 17. Rfd1 {[%emt 0:06:40]} Ne4 {[%emt 0:00:00]} 18.
Nh4 {[%emt 0:13:53]} Be2 {[%emt 0:16:49]} 19. Re1 {[%emt 0:01:54]} Bb5 {
[%emt 0:00:06]} 20. Qa5 {[%emt 0:03:07]} a6 {[%emt 0:04:44]} 21. Bxe4 {[%emt 0:
01:38]} dxe4 {[%emt 0:06:33]} 22. a4 {[%emt 0:02:06]} Nc6 {[%emt 0:00:10]} 23.
Qc3 {[%emt 0:05:46]} Bxa4 {[%emt 0:00:23]} 24. Nxc5 {[%emt 0:02:01]} Ne5 {
[%emt 0:01:11]} 25. Qd4 {[%emt 0:01:44]} Bb5 {[%emt 0:02:34]} 26. Nxe4 {
[%emt 0:02:24]} Rcd8 {[%emt 0:02:23]} 27. Qc5 {[%emt 0:01:54]} Qxc5 {[%emt 0:
00:38]} 28. Nxc5 {[%emt 0:00:53]} g5 {[%emt 0:00:07]} 29. f4 {[%emt 0:01:07]}
gxh4 {[%emt 0:00:04]} 30. fxe5 {[%emt 0:00:06]} Rd2 {[%emt 0:04:05]} 31. Ne4 {
[%emt 0:00:21]} Rxb2 {[%emt 0:00:09]} 32. Nf6+ {[%emt 0:01:25]} Kg7 {[%emt 0:
00:19]} 33. gxh4 {[%emt 0:00:16]} Rd8 {[%emt 0:01:17]} 34. Kh1 {[%emt 0:01:46]}
Rdd2 {[%emt 0:02:15]} 35. Rg1+ {[%emt 0:00:05]} Kf8 {[%emt 0:00:15]} 36. Rg8+ {
[%emt 0:03:42]} Ke7 {[%emt 0:00:03]} 37. Ne4 {[%emt 0:00:45]} Rxh2+ {[%emt 0:
00:26]} 38. Kg1 {[%emt 0:00:01]} Rxh4 {[%emt 0:02:45]} 39. Rc7+ {[%emt 0:00:16]
} Ke6 {[%emt 0:00:26]} 40. Ng5+ {[%emt 0:00:35]} Kxe5 {[%emt 0:00:45]} 41.
Nxf7+ {[%emt 0:13:37]} Ke6 {[%emt 0:08:21]} 42. Nd8+ {[%emt 0:01:47]} Kd5 {
[%emt 0:07:11]} 43. Rg5+ {[%emt 0:04:47]} Ke4 {[%emt 0:03:45]} 44. Re7+ {
[%emt 0:00:06]} Kd3 {[%emt 0:00:26]} 45. Ne6 {[%emt 0:02:16]} Bc6 {[%emt 0:08:
22]} 46. e4 {[%emt 0:01:39]} Rb1+ {[%emt 0:01:35]} 47. Kf2 {[%emt 0:00:06]}
Rh2+ {[%emt 0:02:20]} 48. Kg3 {[%emt 0:00:02]} Rhh1 {[%emt 0:00:44]} 49. Nf4+ {
[%emt 0:00:34]} Kd4 {[%emt 0:00:42]} 50. Ra5 {[%emt 0:05:02]} Rbg1+ {[%emt 0:
01:38]} 51. Ng2 {[%emt 0:00:08]} h5 {[%emt 0:00:30]} 52. Kf2 {[%emt 0:01:03]}
Rf1+ {[%emt 0:00:20]} 53. Kg3 {[%emt 0:00:32]} Ra1 {[%emt 0:00:43]} 54. Rxa1 {
[%emt 0:02:25]} Rxa1 {[%emt 0:00:03]} 55. Nf4 {[%emt 0:00:28]} a5 {[%emt 0:00:
49]} 56. e5 {[%emt 0:00:37]} a4 {[%emt 0:00:30]} 57. e6 {[%emt 0:00:13]} a3 {
[%emt 0:00:36]} 58. Rd7+ {[%emt 0:01:12]} Ke5 {[%emt 0:00:31]} 59. Ra7 {
[%emt 0:02:31]} a2 {[%emt 0:00:23]} 60. Ra5+ {[%emt 0:00:59]} Kd6 {[%emt 0:00:
20]} 61. Ne2 {[%emt 0:00:58]} h4+ {[%emt 0:00:30]} 62. Kf2 {[%emt 0:00:00]} h3
{[%emt 0:00:48]} 63. Ra6 {[%emt 0:00:15]} h2 {[%emt 0:00:17]} 64. Ng3 {[%emt 0:
00:25]} h1=Q {[%emt 0:00:20]} 65. Nxh1 {[%emt 0:00:03]} Rxh1 {[%emt 0:00:06]}
66. e7 {[%emt 0:00:24]} Kxe7 {[%emt 0:00:11]} 0-1

[Event "23rd ETCC Women 2021"]
[Site "Catez"]
[Date "2021.11.20"]
[Round "8.43"]
[White "Matnadze, Ana"]
[Black "Levitan, Ronit"]
[Result "1-0"]
[ECO "A03"]
[WhiteElo "2418"]
[BlackElo "2068"]
[Annotator "NA"]
[PlyCount "39"]
[EventDate "2021.11.08"]
[EventType "team-tourn"]
[EventCountry "SLO"]
[SourceTitle "playchess.com"]
[Source "ChessBase"]
[SourceQuality "1"]
[WhiteTeam "Spain"]
[BlackTeam "Israel"]
[WhiteTeamCountry "ESP"]
[BlackTeamCountry "ISR"]
[TimeControl "40/5400+30:1800+30"]

1. f4 {[%emt 0:00:03]} d5 {[%emt 0:01:25]} 2. Nf3 {[%emt 0:00:06]} Nf6 {
[%emt 0:00:59]} 3. e3 {[%emt 0:00:10]} e6 {[%emt 0:00:51]} 4. b3 {[%emt 0:00:
27]} Bd6 {[%emt 0:02:38]} 5. Bb2 {[%emt 0:00:18]} O-O {[%emt 0:02:02]} 6. c4 {
[%emt 0:01:19]} b6 {[%emt 0:02:41]} 7. Qc2 {[%emt 0:00:43]} Bb7 {[%emt 0:04:00]
} 8. Bd3 {[%emt 0:02:21]} Ne4 {[%emt 0:16:36]} 9. Nc3 {[%emt 0:04:43]} f5 {
[%emt 0:00:58]} 10. Nb5 {[%emt 0:04:56]} Nd7 {[%emt 0:05:28]} 11. O-O {[%emt 0:
02:26]} Ndf6 {[%emt 0:01:19]} 12. Be2 {[%emt 0:00:45]} a6 {[%emt 0:06:58]} 13.
Nxd6 {[%emt 0:03:51]} cxd6 {[%emt 0:00:09]} 14. b4 {[%emt 0:02:55]} Ng4 {
[%emt 0:03:12]} 15. cxd5 {[%emt 0:10:03]} Bxd5 {[%emt 0:01:01]} 16. Rac1 {
[%emt 0:02:55]} Qe8 {[%emt 0:08:08]} 17. Bc4 {[%emt 0:08:32]} Bb7 {[%emt 0:04:
29]} 18. Qb3 {[%emt 0:03:14]} Qh5 {[%emt 0:04:05]} 19. Bxe6+ {[%emt 0:00:50]}
Kh8 {[%emt 0:00:09]} 20. Rc7 {[%emt 0:00:26]} 1-0